fUST/lending_fUST_20260526
["ID","MTS","AMOUNT","RATE_DAILY","PERIOD"]
[423030956,1779780642000,-160.0,0.00012972,7]
[423030950,1779780642000,-830.0,0.00012893,2]
[423030955,1779780642000,-528.12976111,0.00012969,2]
[423030951,1779780642000,-413.42307269,0.00012895,10]
[423030954,1779780642000,-354.16230743,0.00012947,14]
[423030959,1779780642000,-100655.88858641,0.00013,2]
[423030948,1779780642000,-824.0,0.00012893,2]
[423030969,1779780642000,-1940.47158425,0.00013,5]
[423030970,1779780642000,-1071.7842746,0.00013,5]
[423030961,1779780642000,-1008.73232214,0.00013,2]
[423030962,1779780642000,-150.92,0.00013,2]
[423030964,1779780642000,-3311.67974032,0.00013,2]
[423030965,1779780642000,-10046.48675023,0.00013,2]
[423030963,1779780642000,-150.92,0.00013,2]
[423030966,1779780642000,-2695.8,0.00013,2]
[423030967,1779780642000,-135987.02927165,0.00013,5]
[423030958,1779780642000,-3011.0,0.00013,2]
[423030946,1779780642000,-824.0,0.00012893,2]
[423030952,1779780642000,-354.16230743,0.0001291,7]
[423030947,1779780642000,-824.0,0.00012893,2]
[423030930,1779780642000,-824.0,0.00012893,2]
[423030926,1779780642000,-824.0,0.00012893,2]
[423030927,1779780642000,-824.0,0.00012893,2]
[423030932,1779780642000,-824.0,0.00012893,2]
[423030942,1779780642000,-824.0,0.00012893,2]
[423030949,1779780642000,-824.0,0.00012893,2]
[423030933,1779780642000,-824.0,0.00012893,2]
[423030931,1779780642000,-824.0,0.00012893,2]
[423030943,1779780642000,-824.0,0.00012893,2]
[423030968,1779780642000,-1107.77791314,0.00013,5]
[423030936,1779780642000,-824.0,0.00012893,2]
[423030934,1779780642000,-824.0,0.00012893,2]
[423030945,1779780642000,-824.0,0.00012893,2]
[423030941,1779780642000,-824.0,0.00012893,2]
[423030938,1779780642000,-824.0,0.00012893,2]
[423030928,1779780642000,-824.0,0.00012893,2]
[423030939,1779780642000,-824.0,0.00012893,2]
[423030937,1779780642000,-824.0,0.00012893,2]
[423030935,1779780642000,-824.0,0.00012893,2]
[423030940,1779780642000,-824.0,0.00012893,2]
[423030987,1779780647000,-1349.46435442,0.0001274,2]
[423030986,1779780647000,-160.17,0.00012329,2]
[423030988,1779780647000,-4490.36564558,0.00013,5]
[423033373,1779780672000,500.0,6.023e-05,2]
[423035435,1779780689000,-500.0,6.023e-05,2]
[423037796,1779780801000,-500.0,6.023e-05,2]
[423037797,1779780854000,-368.21188138,7.173e-05,2]
[423037798,1779780908000,-500.0,7.1e-05,2]
[423037800,1779780961000,-500.0,7.1e-05,2]
[423037801,1779781015000,-300.0,7.099e-05,2]
[423037803,1779781068000,-500.0,7.099e-05,2]
[423037804,1779781121000,-500.0,7.099e-05,2]
[423037806,1779781175000,-500.0,7.098e-05,2]
[423037807,1779781228000,-500.0,7.098e-05,2]
[423037809,1779781282000,-500.0,7.097e-05,2]
[423037864,1779781832000,-366.05273999,6.725e-05,2]
[423037874,1779781832000,-2943.9062546,6.726e-05,2]
[423037866,1779781832000,-370.08141508,6.725e-05,2]
[423037868,1779781832000,-472.31968699,6.725e-05,2]
[423037870,1779781832000,-27.68031301,6.725e-05,2]
[423037882,1779781832000,-1011.79212612,6.726e-05,2]
[423037880,1779781832000,-548.25,6.726e-05,2]
[423037878,1779781832000,-500.0,6.725e-05,2]
[423037884,1779781832000,-496.05161928,6.726e-05,2]
[423037886,1779781832000,-200.0,6.794e-05,2]
[423037872,1779781832000,-500.0,6.725e-05,2]
[423037904,1779781832000,-0.82926303,7.093e-05,2]
[423037901,1779781832000,-499.17073697,7.093e-05,2]
[423037897,1779781832000,-360.84764375,6.988e-05,2]
[423037905,1779781832000,-357.22602103,7.093e-05,2]
[423037888,1779781832000,-200.0,6.794e-05,2]
[423037893,1779781832000,-90.07661928,6.794e-05,7]
[423037891,1779781832000,-109.92338072,6.794e-05,7]
[423037895,1779781832000,-200.0,6.794e-05,7]
[423037940,1779781845000,-500.0,6.725e-05,2]
[423037955,1779781846000,-500.0,7.093e-05,2]
[423037959,1779781846000,-425.80021962,8.988e-05,2]
[423037963,1779781846000,-500.0,9.925e-05,2]
[423037960,1779781846000,-500.0,9.925e-05,2]
[423037961,1779781846000,-500.0,9.925e-05,2]
[423037962,1779781846000,-500.0,9.925e-05,2]
[423037958,1779781846000,-203.105674,8.919e-05,2]
[423037953,1779781846000,-500.0,7.093e-05,2]
[423037952,1779781846000,-500.0,7.093e-05,2]
[423037949,1779781846000,-465.58520767,6.725e-05,2]
[423037954,1779781846000,-500.0,7.093e-05,2]
[423037966,1779781846000,-500.0,9.925e-05,2]
[423037951,1779781846000,-274.75333805,7.093e-05,2]
[423037948,1779781846000,-500.0,6.725e-05,2]
[423037956,1779781846000,-160.0,8.322e-05,2]
[423037957,1779781846000,-162.748261,8.595e-05,2]
[423037947,1779781846000,-377.73884816,6.725e-05,2]
[423037944,1779781846000,-500.0,6.725e-05,2]
[423037945,1779781846000,-500.0,6.725e-05,2]
[423037946,1779781846000,-78.15418178,6.725e-05,2]
[423037941,1779781846000,-500.0,6.725e-05,2]
[423037943,1779781846000,-122.00270275,6.725e-05,2]
[423037942,1779781846000,-377.99729725,6.725e-05,2]
[423037950,1779781846000,-34.41479233,6.725e-05,2]
[423037965,1779781846000,-500.0,9.925e-05,2]
[423037991,1779781846000,-243.17022773,0.00010092,2]
[423037974,1779781846000,-500.0,9.925e-05,2]
[423037989,1779781846000,-35127.05865964,0.00010086,2]
[423037990,1779781846000,-259.464,0.00010092,2]
[423037981,1779781846000,-170.72916336,9.988e-05,2]
[423037982,1779781846000,-500.0,9.999e-05,2]
[423037984,1779781846000,-10046.48675022,0.0001,2]
[423037980,1779781846000,-500.0,9.926e-05,2]
[423037983,1779781846000,-500.0,9.999e-05,2]
[423037979,1779781846000,-195.7454017,9.926e-05,2]
[423037977,1779781846000,-309.21704182,9.925e-05,2]
[423037978,1779781846000,-253.6539694,9.926e-05,2]
[423037986,1779781846000,-440.07357235,0.00010086,2]
[423037988,1779781846000,-144041.56384429,0.00010086,2]
[423037987,1779781846000,-7445.84471404,0.00010086,2]
[423037969,1779781846000,-500.0,9.925e-05,2]
[423037964,1779781846000,-500.0,9.925e-05,2]
[423037973,1779781846000,-500.0,9.925e-05,2]
[423037968,1779781846000,-500.0,9.925e-05,2]
[423037972,1779781846000,-500.0,9.925e-05,2]
[423037967,1779781846000,-500.0,9.925e-05,2]
[423037975,1779781846000,-500.0,9.925e-05,2]
[423037970,1779781846000,-341.32993513,9.925e-05,2]
[423037976,1779781846000,-500.0,9.925e-05,2]
[423037985,1779781846000,-12945.45920968,0.00010086,2]
[423037971,1779781846000,-500.0,9.925e-05,2]
[423037998,1779781899000,-434.91577861,9.6e-05,2]
[423037999,1779781919000,-8.08422139,9.6e-05,2]
[423038000,1779781971000,160.0,9.5e-05,2]
[423038001,1779781982000,300.0,9.499e-05,2]
[423038003,1779782101000,300.0,9.499e-05,2]
[423038004,1779782102000,807.77791314,9.499e-05,2]
[423038005,1779782161000,152.0,0.00013519,30]
[423038006,1779782186000,152.0,0.00013519,30]
[423038010,1779782482000,152.0,0.00013554,30]
[423038011,1779782505000,152.0,0.00013554,30]
[423038014,1779782661000,-388.22208686,7.31e-05,2]
[423038015,1779782714000,-1107.77791314,7.31e-05,2]
[423038016,1779782734000,-1940.47158425,7.31e-05,2]
[423038099,1779783035000,-7497.44820152,9.123e-05,2]
[423038093,1779783035000,-500.0,7.382e-05,2]
[423038096,1779783035000,-500.0,7.382e-05,2]
[423038095,1779783035000,-500.0,7.382e-05,2]
[423038080,1779783035000,-349.27017027,7.382e-05,2]
[423038078,1779783035000,-411.62195763,7.382e-05,2]
[423038076,1779783035000,-88.37804237,7.382e-05,2]
[423038068,1779783035000,-393.0,7.381e-05,2]
[423038070,1779783035000,-500.0,7.382e-05,2]
[423038064,1779783035000,-357.22120964,7.346e-05,2]
[423038062,1779783035000,-5000.0,7.31e-05,2]
[423038066,1779783035000,-300.0,7.381e-05,2]
[423038074,1779783035000,-500.0,7.382e-05,2]
[423038060,1779783035000,-6341.0117703,7.21e-05,2]
[423038058,1779783035000,-11510.8,7.21e-05,2]
[423038072,1779783035000,-500.0,7.382e-05,2]
[423038087,1779783035000,-418.39655202,7.382e-05,2]
[423038091,1779783035000,-500.0,7.382e-05,2]
[423038089,1779783035000,-500.0,7.382e-05,2]
[423038142,1779783035000,-2077.59390076,9.778e-05,2]
[423038135,1779783035000,-500.0,9.5e-05,2]
[423038133,1779783035000,-500.0,9.499e-05,2]
[423038140,1779783035000,-500.0,9.773e-05,2]
[423038137,1779783035000,-443.0,9.56e-05,2]
[423038138,1779783035000,-185.0,9.56e-05,2]
[423038125,1779783035000,-500.0,9.499e-05,2]
[423038123,1779783035000,-500.0,9.499e-05,2]
[423038083,1779783035000,-150.72982973,7.382e-05,2]
[423038129,1779783035000,-500.0,9.499e-05,2]
[423038127,1779783035000,-500.0,9.499e-05,2]
[423038121,1779783035000,-160.0,9.494e-05,2]
[423038119,1779783035000,-421.52102737,9.346e-05,2]
[423038117,1779783035000,-1158.80173438,9.123e-05,2]
[423038101,1779783035000,-1343.7500641,9.123e-05,2]
[423038085,1779783035000,-500.0,7.382e-05,2]
[423038131,1779783035000,-192.38555136,9.499e-05,2]
[423038251,1779783038000,-1107.77791314,9.778e-05,2]
[423038253,1779783038000,-427.19460568,9.778e-05,2]
[423038254,1779783038000,-2477.04716169,9.778e-05,2]
[423038252,1779783038000,-1940.47158425,9.778e-05,2]
[423038256,1779783039000,-438.66255434,9.778e-05,2]
[423038255,1779783039000,-4752.06329729,9.778e-05,2]
[423038261,1779783041000,-879.09189318,9.778e-05,2]
[423038262,1779783041000,-6625.51755511,9.778e-05,2]
[423038260,1779783041000,-3250.67284012,9.778e-05,2]
[423038315,1779783044000,-10502.98590886,9.778e-05,2]
[423038327,1779783049000,-6859.48680107,9.778e-05,2]
[423038326,1779783049000,-5000.0,9.68e-05,2]
[423038331,1779783352000,152.0,0.00013572,30]
[423038332,1779783372000,152.0,0.00013549,30]
[423038334,1779783685000,-1107.77791314,7.413e-05,2]
[423038335,1779783705000,-1940.47158425,7.413e-05,2]
[423038336,1779783726000,-427.19460568,7.413e-05,2]
[423038344,1779783993000,417.30186714,0.00013842,30]
[423038343,1779783993000,417.30186714,0.00013764,30]
[423038346,1779783994000,417.30186714,0.00013999,30]
[423038345,1779783994000,417.30186714,0.00013921,30]
[423038347,1779783995000,417.30186714,0.00014078,60]
[423038351,1779784107000,152.0,0.00013549,30]
[423038352,1779784127000,152.0,0.00013549,30]
[423038398,1779784232000,-464.89277689,7.412e-05,2]
[423038416,1779784232000,-152.0,7.565e-05,2]
[423038405,1779784232000,-35.10722311,7.412e-05,2]
[423038420,1779784232000,-300.0,8.014e-05,2]
[423038422,1779784232000,-300.0,8.014e-05,2]
[423038409,1779784232000,-157.59961689,7.412e-05,2]
[423038411,1779784232000,-1200.0,7.412e-05,2]
[423038418,1779784232000,-300.0,8.014e-05,2]
[423038413,1779784232000,-351.4035826,7.413e-05,2]
[423038414,1779784232000,-5000.0,7.413e-05,2]
[423038424,1779784232000,-500.0,8.015e-05,2]
[423038425,1779784232000,-500.0,8.015e-05,2]
[423038427,1779784232000,-500.0,8.015e-05,2]
[423038429,1779784232000,-384.66988595,8.015e-05,2]
[423038431,1779784232000,-6548.7156204,8.016e-05,2]
[423038433,1779784232000,-1052.0,8.016e-05,2]
[423038407,1779784232000,-606.21033666,7.412e-05,2]
[423038551,1779784239000,-500.0,9.029e-05,2]
[423038548,1779784239000,-561.18762023,9.029e-05,2]
[423038547,1779784239000,-500.0,9.029e-05,2]
[423038553,1779784239000,-500.0,9.029e-05,2]
[423038544,1779784239000,-500.0,9.029e-05,2]
[423038539,1779784239000,-420.0,8.815e-05,2]
[423038533,1779784239000,-500.0,8.219e-05,2]
[423038543,1779784239000,-500.0,9.029e-05,2]
[423038540,1779784239000,-317.0,8.969e-05,2]
[423038532,1779784239000,-1680.0,8.153e-05,2]
[423038535,1779784239000,-599.4868091,8.219e-05,2]
[423038531,1779784239000,-3702.2236497,8.016e-05,2]
[423038556,1779784239000,-500.0,9.029e-05,2]
[423038558,1779784239000,-500.0,9.029e-05,2]
[423038537,1779784239000,-262.0707082,8.814e-05,2]
[423038560,1779784239000,-500.0,9.029e-05,2]
[423038588,1779784239000,-1211.44172772,9.466e-05,2]
[423038582,1779784239000,-1940.47158425,9.466e-05,2]
[423038586,1779784239000,-4606.7222871,9.466e-05,2]
[423038579,1779784239000,-1107.77791314,9.466e-05,2]
[423038570,1779784239000,-500.0,9.303e-05,2]
[423038574,1779784239000,-414.65622747,9.413e-05,2]
[423038584,1779784239000,-391.54047608,9.466e-05,2]
[423038572,1779784239000,-160.0,9.398e-05,2]
[423038577,1779784239000,-117480.14455332,9.466e-05,2]
[423038566,1779784239000,-500.0,9.303e-05,2]
[423038554,1779784239000,-531.05,9.029e-05,2]
[423038562,1779784239000,-3372.0699942,9.123e-05,2]
[423038568,1779784239000,-500.0,9.303e-05,2]
[423038564,1779784239000,-500.0,9.303e-05,2]
[423038612,1779784254000,152.0,0.00013559,30]
[423038613,1779784474000,2135.62,0.00017808,120]
[423038614,1779784544000,-391.54047608,6.562e-05,2]
[423038616,1779784564000,-35.20446948,6.562e-05,2]
[423038618,1779784600000,-355.12674278,6.594e-05,2]
[423038619,1779784601000,-144.87325722,6.626e-05,2]
[423038620,1779784617000,-128.12674278,6.626e-05,2]
[423038621,1779784671000,-151.0,6.5e-05,2]
[423038623,1779784725000,-300.0,6.625e-05,2]
[423038629,1779784755000,4875.35979838,0.00017,120]
[423038630,1779784778000,-300.0,6.624e-05,2]
[423038631,1779784832000,-500.0,6.625e-05,2]
[423038636,1779784885000,-500.0,6.624e-05,2]
[423038637,1779784938000,-500.0,6.624e-05,2]
[423038638,1779784948000,152.0,0.00013559,30]
[423038639,1779784979000,153.38071739,0.00017,120]
[423038641,1779784992000,-500.0,6.623e-05,2]
[423038643,1779785358000,-500.0,6.554e-05,2]
[423038644,1779785411000,-1107.77791314,6.454e-05,2]
[423038663,1779785432000,-1940.47158425,6.454e-05,2]
[423038668,1779785432000,-466.79411326,6.554e-05,2]
[423038664,1779785432000,-8139.40679214,6.454e-05,2]
[423038665,1779785432000,-323.14371047,6.454e-05,2]
[423038667,1779785432000,-500.0,6.554e-05,2]
[423038666,1779785432000,-500.0,6.554e-05,2]
[423038687,1779785438000,-250.0,6.554e-05,2]
[423038689,1779785438000,-348.02420793,6.623e-05,2]
[423038686,1779785438000,-500.0,6.554e-05,2]
[423038697,1779785438000,-212.33569988,8.219e-05,2]
[423038688,1779785438000,-5000.0,6.554e-05,2]
[423038696,1779785438000,-598.73308816,8.219e-05,2]
[423038681,1779785438000,-500.0,6.554e-05,2]
[423038684,1779785438000,-623.66892017,6.553e-05,2]
[423038693,1779785438000,-500.0,8.219e-05,2]
[423038683,1779785438000,-391.54047608,6.554e-05,2]
[423038682,1779785438000,-74.5720264,6.554e-05,2]
[423038679,1779785438000,-33.20588674,6.554e-05,2]
[423038680,1779785438000,-500.0,6.554e-05,2]
[423038685,1779785438000,-500.0,6.554e-05,2]
[423038692,1779785438000,-160.0,8.119e-05,2]
[423038706,1779785438000,-500.0,8.493e-05,2]
[423038695,1779785438000,-500.0,8.219e-05,2]
[423038690,1779785438000,-275.846,6.626e-05,2]
[423038710,1779785438000,-9333.58527341,8.567e-05,2]
[423038709,1779785438000,-500.0,8.493e-05,2]
[423038708,1779785438000,-637.29,8.493e-05,2]
[423038707,1779785438000,-499.838,8.493e-05,2]
[423038703,1779785438000,-500.0,8.219e-05,2]
[423038704,1779785438000,-500.0,8.493e-05,2]
[423038705,1779785438000,-500.0,8.493e-05,2]
[423038702,1779785438000,-500.0,8.219e-05,2]
[423038701,1779785438000,-500.0,8.219e-05,2]
[423038700,1779785438000,-500.0,8.219e-05,2]
[423038698,1779785438000,-500.0,8.219e-05,2]
[423038694,1779785438000,-500.0,8.219e-05,2]
[423038691,1779785438000,-152.0,6.796e-05,7]
[423038699,1779785438000,-500.0,8.219e-05,2]
[423038841,1779785452000,-500.0,6.453e-05,2]
[423038845,1779785452000,-500.0,6.453e-05,2]
[423038842,1779785452000,-500.0,6.453e-05,2]
[423038837,1779785452000,-500.0,6.453e-05,2]
[423038844,1779785452000,-500.0,6.453e-05,2]
[423038839,1779785452000,-500.0,6.453e-05,2]
[423038840,1779785452000,-500.0,6.453e-05,2]
[423038832,1779785452000,-500.0,6.453e-05,2]
[423038836,1779785452000,-500.0,6.453e-05,2]
[423038834,1779785452000,-500.0,6.453e-05,2]
[423038830,1779785452000,-500.0,6.453e-05,2]
[423038831,1779785452000,-250.0,6.453e-05,2]
[423038835,1779785452000,-268.36755315,6.453e-05,2]
[423038833,1779785452000,-506.89611728,6.453e-05,2]
[423038843,1779785452000,-500.0,6.453e-05,2]
[423038838,1779785452000,-469.5008533,6.453e-05,2]
[423038847,1779785452000,-500.0,6.453e-05,2]
[423038864,1779785452000,-1608.97128171,8.567e-05,2]
[423038848,1779785452000,-500.0,6.453e-05,2]
[423038861,1779785452000,-500.0,8.219e-05,2]
[423038863,1779785452000,-14917.63007128,8.567e-05,2]
[423038862,1779785452000,-422.24,8.493e-05,2]
[423038860,1779785452000,-500.0,6.553e-05,2]
[423038856,1779785452000,-267.17205509,6.453e-05,2]
[423038854,1779785452000,-56.04890047,6.453e-05,2]
[423038858,1779785452000,-145.99257312,6.453e-05,2]
[423038846,1779785452000,-500.0,6.453e-05,2]
[423038851,1779785452000,-500.0,6.453e-05,2]
[423038857,1779785452000,-500.0,6.453e-05,2]
[423038859,1779785452000,-165.91007218,6.453e-05,2]
[423038852,1779785452000,-500.0,6.453e-05,2]
[423038853,1779785452000,-443.95109953,6.453e-05,2]
[423038849,1779785452000,-500.0,6.453e-05,2]
[423038850,1779785452000,-500.0,6.453e-05,2]
[423038855,1779785452000,-232.82794491,6.453e-05,2]
[423038865,1779785505000,-1021.37348596,6.454e-05,2]
[423038866,1779785526000,-1021.37348596,6.454e-05,2]
[423038867,1779785546000,-1021.37348596,6.454e-05,2]
[423038875,1779785566000,702.95315706,0.00014521,30]
[423038874,1779785566000,702.95315706,0.00014466,30]
[423038873,1779785566000,702.95315706,0.00014384,30]
[423038869,1779785566000,702.95315706,0.0001411,30]
[423038871,1779785566000,702.95315706,0.00014247,30]
[423038870,1779785566000,702.95315706,0.00014192,30]
[423038868,1779785566000,-1021.37348596,6.454e-05,2]
[423038872,1779785566000,702.95315706,0.00014329,30]
[423038880,1779785567000,702.95315706,0.00014877,30]
[423038878,1779785567000,702.95315706,0.0001474,30]
[423038876,1779785567000,702.95315706,0.00014603,30]
[423038877,1779785567000,702.95315706,0.00014658,30]
[423038879,1779785567000,702.95315706,0.00014795,30]
[423038888,1779785749000,1000.0,0.00017808,120]
[423038889,1779785756000,547.0,0.00017808,120]
[423038890,1779785891000,-300.0,6.452e-05,2]
[423038891,1779785944000,-341.06372377,6.452e-05,2]
[423038892,1779785997000,-300.0,6.452e-05,2]
[423038893,1779786051000,-300.0,6.452e-05,2]
[423038895,1779786104000,-300.0,6.452e-05,2]
[423038899,1779786158000,-238.0,6.452e-05,2]
[423038900,1779786211000,-334.24244929,6.452e-05,2]
[423038901,1779786264000,-500.0,6.453e-05,2]
[423038902,1779786318000,-500.0,6.453e-05,2]
[423038907,1779786372000,-500.0,6.453e-05,2]
[423038908,1779786394000,168.0,0.00015,30]
[423038967,1779786632000,-1043.02980477,6.388e-05,2]
[423038959,1779786632000,-2732.49130645,6.388e-05,2]
[423039205,1779786638000,-500.0,6.387e-05,2]
[423039203,1779786638000,-500.0,6.387e-05,2]
[423039207,1779786638000,-104.05991402,6.387e-05,2]
[423039206,1779786638000,-367.04883068,6.387e-05,2]
[423039204,1779786638000,-469.36283955,6.387e-05,2]
[423039236,1779786643000,-646.59,8.219e-05,2]
[423039238,1779786643000,-386.51796836,8.453e-05,2]
[423039248,1779786643000,-512.21642727,9.312e-05,2]
[423039247,1779786643000,-500.0,9.312e-05,2]
[423039234,1779786643000,-1587.781824,7.413e-05,2]
[423039246,1779786643000,-500.0,9.312e-05,2]
[423039235,1779786643000,-160.0,8.112e-05,2]
[423039233,1779786643000,-152.0,6.796e-05,7]
[423039231,1779786643000,-327.55760031,6.453e-05,2]
[423039229,1779786643000,-383.81565823,6.387e-05,2]
[423039230,1779786643000,-1224.47888878,6.388e-05,2]
[423039232,1779786643000,-177.7624,6.518e-05,2]
[423039241,1779786643000,-500.0,8.839e-05,2]
[423039245,1779786643000,-500.0,9.312e-05,2]
[423039242,1779786643000,-500.0,8.839e-05,2]
[423039228,1779786643000,-309.59055151,6.387e-05,2]
[423039244,1779786643000,-500.0,9.113e-05,2]
[423039237,1779786643000,-500.0,8.219e-05,2]
[423039259,1779786643000,-76700.0,9.548e-05,2]
[423039258,1779786643000,-17656.86964514,9.548e-05,2]
[423039260,1779786643000,-560.13297519,9.548e-05,2]
[423039250,1779786643000,-358.99,9.387e-05,2]
[423039256,1779786643000,-1452.27590095,9.5e-05,2]
[423039255,1779786643000,-1302.16084456,9.5e-05,2]
[423039257,1779786643000,-1596.93793989,9.5e-05,2]
[423039252,1779786643000,-483.31707738,9.461e-05,2]
[423039254,1779786643000,-639.96874699,9.5e-05,2]
[423039251,1779786643000,-409.72493621,9.445e-05,2]
[423039243,1779786643000,-500.0,9.113e-05,2]
[423039249,1779786643000,-500.0,9.387e-05,2]
[423039239,1779786643000,-500.0,8.565e-05,2]
[423039240,1779786643000,-500.0,8.565e-05,2]
[423039253,1779786643000,-500.0,9.499e-05,2]
[423039267,1779786649000,-3840.3,9.548e-05,2]
[423039275,1779787465000,158.84,5.006e-05,2]
[423039276,1779787579000,14634.02017637,0.00015,120]
[423039317,1779787832000,-363.20171972,6.783e-05,2]
[423039313,1779787832000,-500.0,6.783e-05,2]
[423039315,1779787832000,-313.13248629,6.783e-05,2]
[423039311,1779787832000,-500.0,6.783e-05,2]
[423039457,1779787839000,-136.79828028,6.783e-05,2]
[423039459,1779787839000,-500.0,6.783e-05,2]
[423039458,1779787839000,-500.0,6.783e-05,2]
[423039460,1779787839000,-500.0,6.783e-05,2]
[423039462,1779787839000,-2201.57998316,6.784e-05,2]
[423039461,1779787839000,-500.0,6.783e-05,2]
[423039551,1779787841000,-3132.14877444,9.252e-05,2]
[423039550,1779787841000,-3606.83182177,9.252e-05,2]
[423039549,1779787841000,-254.257,9.165e-05,2]
[423039548,1779787841000,-376.68017234,8.853e-05,2]
[423039544,1779787841000,-300.0,6.906e-05,2]
[423039543,1779787841000,-319.22048504,6.853e-05,2]
[423039547,1779787841000,-151.9315249,8.806e-05,2]
[423039546,1779787841000,-269.99700305,6.906e-05,2]
[423039542,1779787841000,-152.0,6.798e-05,7]
[423039545,1779787841000,-30.00299695,6.906e-05,2]
[423039541,1779787841000,-2798.42001684,6.784e-05,2]
[423039584,1779787843000,-271.00455549,9.252e-05,2]
[423039585,1779787843000,-819.30227355,9.252e-05,2]
[423039586,1779787843000,-359.66901507,9.252e-05,2]
[423039589,1779787844000,-6737.03391632,9.252e-05,2]
[423039587,1779787844000,-396.54944253,9.252e-05,2]
[423039588,1779787844000,-1598.04860122,9.252e-05,2]
[423039622,1779787849000,-5064.35616059,9.252e-05,2]
[423039621,1779787849000,-150141.95847053,9.252e-05,2]
[423039665,1779789032000,-203.406,8.918e-05,2]
[423039663,1779789032000,-271.670384,8.806e-05,2]
[423039661,1779789032000,-326.042,8.806e-05,2]
[423039667,1779789032000,-5142.0,8.998e-05,2]
[423039657,1779789032000,-3918.8571259,8.273e-05,2]
[423039677,1779789032000,-2105.77040065,9e-05,2]
[423039670,1779789032000,-324.47798179,8.999e-05,2]
[423039673,1779789032000,-408.55149909,8.999e-05,2]
[423039674,1779789032000,-500.0,8.999e-05,2]
[423039655,1779789032000,-5000.0,8.19e-05,2]
[423039659,1779789032000,-305.30247189,8.448e-05,2]
[423039668,1779789032000,-175.52201821,8.999e-05,2]
[423039841,1779789050000,-267.12795277,8.189e-05,2]
[423039842,1779789050000,-500.0,8.189e-05,2]
[423039839,1779789050000,-466.11250248,8.189e-05,2]
[423039840,1779789050000,-232.87204723,8.189e-05,2]
[423039844,1779789051000,-19869.72366532,9e-05,2]
[423039843,1779789051000,-500.0,8.999e-05,2]
[423039846,1779789722000,4500.0,0.00015,30]
[423039847,1779789814000,250.0,0.00015,30]
[423040285,1779790239000,-454.8239099,6.699e-05,2]
[423040278,1779790239000,-500.0,6.565e-05,2]
[423040279,1779790239000,-500.0,6.565e-05,2]
[423040281,1779790239000,-313.73678821,6.565e-05,2]
[423040283,1779790239000,-5000.0,6.566e-05,2]
[423040282,1779790239000,-469.36283955,6.565e-05,2]
[423040280,1779790239000,-500.0,6.565e-05,2]
[423040284,1779790239000,-595.7,6.632e-05,2]
[423040277,1779790239000,-367.04883068,6.565e-05,2]
[423040286,1779790239000,-152.0,6.799e-05,7]
[423040293,1779790239000,-303.84892569,7.11e-05,2]
[423040290,1779790239000,-300.0,7.036e-05,2]
[423040288,1779790239000,-260.54678674,7.036e-05,2]
[423040291,1779790239000,-300.0,7.036e-05,2]
[423040289,1779790239000,-300.0,7.036e-05,2]
[423040292,1779790239000,-300.0,7.036e-05,2]
[423040294,1779790239000,-500.0,7.535e-05,2]
[423040295,1779790239000,-351.61350421,7.535e-05,2]
[423040287,1779790239000,-154.45321326,7.036e-05,2]
[423040363,1779790241000,-500.0,7.535e-05,2]
[423040372,1779790241000,-642.53116751,7.536e-05,2]
[423040361,1779790241000,-500.0,7.535e-05,2]
[423040364,1779790241000,-500.0,7.535e-05,2]
[423040359,1779790241000,-500.0,7.535e-05,2]
[423040354,1779790241000,-500.0,7.535e-05,2]
[423040357,1779790241000,-500.0,7.535e-05,2]
[423040355,1779790241000,-500.0,7.535e-05,2]
[423040366,1779790241000,-500.0,7.535e-05,2]
[423040352,1779790241000,-148.38649579,7.535e-05,2]
[423040353,1779790241000,-500.0,7.535e-05,2]
[423040370,1779790241000,-500.0,7.535e-05,2]
[423040391,1779790241000,-500.0,8.349e-05,2]
[423040376,1779790241000,-5782.78050758,7.536e-05,2]
[423040397,1779790241000,-3472.5096332,8.404e-05,2]
[423040393,1779790241000,-448.794429,8.404e-05,2]
[423040395,1779790241000,-1795.17771599,8.404e-05,2]
[423040387,1779790241000,-500.0,8.219e-05,2]
[423040385,1779790241000,-325.9521239,7.964e-05,2]
[423040389,1779790241000,-403.64048724,8.349e-05,2]
[423040368,1779790241000,-307.53417984,7.535e-05,2]
[423040381,1779790241000,-420.0,7.74e-05,2]